[Event "EICC 2025"]
[Site "Eforie-Nord"]
[Date "2025.03.15"]
[Round "1.26"]
[White "Volokitin, Andrei"]
[Black "Filip, Andrei"]
[Result "1-0"]
[Annotator "TA"]
[ECO "C42"]
[WhiteElo "2628"]
[BlackElo "2300"]
[PlyCount "79"]
[EventDate "2025.03.14"]
[EventType "swiss"]
[EventCountry "ROU"]
[SourceTitle "playchess.com"]
[Source "ChessBase"]
[SourceQuality "1"]
[TimeControl "40/5400+30:1800+30"]

{[%evp 18,79,33,29,63,18,21,9,17,20,15,16,21,16,6,18,13,9,3,12,12,0,0,0,0,-13,-8,-4,-5,-16,83,84,103,60,94,38,66,45,35,0,0,0,0,-14,13,8,25,0,0,0,225,234,333,289,1508,136,2733,2383,4308,3397,2225,1727,1426,1275]} 1. e4 {[%emt 0:00:04]} e5 {[%emt 0:00:22]} 2. Nf3 {[%emt 0:00:13]} Nf6 {[%emt 0:00:15]} 3. Nxe5 {[%emt 0:00:21]} d6 {[%emt 0:00:05]} 4. Nf3 {[%emt 0:00:04]} Nxe4 {[%emt 0:00:05]} 5. d4 {[%emt 0:00:09]} d5 {[%emt 0:00:06]} 6. Bd3 {[%emt 0:00:08]} Bd6 {[%emt 0:00:12]} 7. O-O {[%emt 0:00:13]} O-O {[%emt 0:00:11]} 8. c4 {[%emt 0:00:07]} c6 {[%emt 0:00:06]} 9. Re1 {[%emt 0:00:08]} Bf5 {[%emt 0:00:16]} 10. Qb3 {[%emt 0:00:12]} Qd7 {[%emt 0:00:19] A sharp opening C42: Petroff Defence: 3 Nxe5 and unusual White 3rd moves.} 11. Be3 {[%emt 0:00:14]} Na6 {[%emt 0:16:23]} 12. cxd5 {[%emt 0:01:28]} cxd5 {[%emt 0:00:33] The position is equal.} 13. a3 {[%emt 0:00:15] The position is symmetric and equal} Rac8 $146 {[%emt 0:07:19]} (13... Nc7 14. Bf1 Rae8 15. Nbd2 a6 16. Nxe4 Bxe4 17. Ne5 Bxe5 18. dxe5 d4 19. Rad1 Ne6 20. Bxd4 Nxd4 {½-½ Aronian,L (2782)-Erigaisi,A (2627) Tata Steel India Rapid 2021 (9)}) 14. Bb5 {[%emt 0:16:11]} Qd8 {[%emt 0:01:32]} 15. Nc3 {[%emt 0:10:57]} Nxc3 {[%emt 0:05:52]} 16. bxc3 {[%emt 0:00:08]} h6 {[%emt 0:01:56]} 17. g3 {[%emt 0:31:34]} Nc7 {[%emt 0:01:48]} 18. Bf1 {[%emt 0:00:17]} b6 {[%emt 0:03:41]} 19. a4 {[%emt 0:11:15][%cal Ba3a4,Ba4a5][%mdl 32]} Re8 {[%emt 0:06:36]} 20. a5 {[%emt 0:03:09]} b5 {[%emt 0:01:15]} 21. a6 {[%emt 0:14:29]} Rb8 {[%emt 0:04:02]} 22. Ne5 {[%emt 0:02:21]} Rb6 {[%emt 0:01:17][%cal Od8c8] Inhibits Nc6.} 23. Nd3 $1 {[%emt 0:02:20]} Nxa6 {[%emt 0:19:10]} (23... Qf6 $11 {remains equal.}) 24. Qxd5 $16 {[%emt 0:00:36]} Be4 {[%emt 0:02:53]} 25. Qb3 {[%emt 0:04:30]} Bb8 {[%emt 0:07:47]} 26. Bd2 {[%emt 0:00:52]} ({Better is} 26. Nf4 $16 {d5 would now be deadly.} Nc7 27. d5) 26... Nc7 {[%emt 0:02:42] Inhibits d5.} 27. Bf4 {[%emt 0:00:50]} Bd5 {[%emt 0:11:04]} 28. Qa3 {[%emt 0:00:09]} (28. Bxc7 {simplifies} Bxb3 29. Bxd8 Rxd8 30. Bg2) 28... Rxe1 $1 {[%emt 0:01:29]} 29. Rxe1 {[%emt 0:00:04]} Ne6 $1 {[%emt 0:00:15]} 30. Bxb8 {[%emt 0:00:28]} Qxb8 {[%emt 0:00:08]} 31. h4 {[%emt 0:00:43]} Ba8 {[%emt 0:02:08]} 32. Nc5 {[%emt 0:01:09] Inhibits Qb7.} b4 {[%emt 0:02:30]} 33. Qb3 {[%emt 0:00:26]} Nxc5 $2 {[%emt 0:01:23] [#]} (33... Qc8 $11 {and Black has nothing to worry.} 34. Bd3 (34. cxb4 $2 Nxd4 35. Qe3 Nf3+ $19) (34. Nxe6 bxc3 35. Qc4 Qxc4 $17) 34... Nf4 35. cxb4 (35. gxf4 Qg4+ 36. Kf1 Bg2+ 37. Kg1 Bh3+ 38. Kh2 Qg2#) 35... Nh3+ 36. Kf1 Rf6) 34. dxc5 $18 {[%emt 0:00:04]} Rg6 {[%emt 0:00:13]} (34... Rf6 $142 35. cxb4 Rf3) 35. cxb4 {[%emt 0:00:16]} (35. Qxb4 $2 {too greedy.} Rxg3+ $19) 35... Qb7 {[%emt 0:01:16]} (35... a6 36. Re7 Rf6) 36. Re8+ {[%emt 0:00:05]} Kh7 {[%emt 0:00:04][%csl Ga8][%cal Rb7h1] [#] A mistake that costs the game.} 37. Rxa8 $1 {[%emt 0:00:18][%mdl 512] White is clearly winning.} Qxa8 {[%emt 0:00:05]} 38. Bd3 {[%emt 0:00:12][%cal Ob3f7]} ({Not} 38. Qxf7 Rf6 39. Qc4 Kh8 $18) 38... Kh8 {[%emt 0:01:19]} 39. Bxg6 {[%emt 0:00:07]} fxg6 {[%emt 0:00:03]} 40. Qe6 {[%emt 0:00:29] Weighted Error Value: White=0.12 (very precise) /Black=0.45  Loses game:     	---       	Black=2      Mistake:       	White=1     	Black=3      Inaccurate:     	White=3     	Black=3      OK:         	White=4     	Black=9      Best:        	White=3     	Black=1      Strong:       	White=1     	Black=2} 1-0

[Event "EICC 2025"]
[Site "Eforie-Nord"]
[Date "2025.03.15"]
[Round "1.26"]
[White "Oliinyk, Serafym"]
[Black "Dudin, Gleb"]
[Result "0-1"]
[Annotator "ChessBase"]
[ECO "B81"]
[WhiteElo "2205"]
[BlackElo "2544"]
[PlyCount "50"]
[EventDate "2025.03.14"]
[EventType "swiss"]
[EventCountry "ROU"]
[SourceTitle "playchess.com"]
[Source "ChessBase"]
[SourceQuality "1"]
[TimeControl "40/5400+30:1800+30"]

1. e4 {[%emt 0:00:02]} c5 {[%emt 0:00:08]} 2. Nf3 {[%emt 0:00:01]} d6 {[%emt 0:00:17]} 3. d4 {[%emt 0:00:03]} cxd4 {[%emt 0:00:10]} 4. Nxd4 {[%emt 0:00:02]} Nf6 {[%emt 0:00:12]} 5. Nc3 {[%emt 0:00:03]} a6 {[%emt 0:00:11]} 6. h3 {[%emt 0:00:26]} e6 {[%emt 0:00:12]} 7. g4 {[%emt 0:00:08]} h6 {[%emt 0:00:07]} 8. Be3 {[%emt 0:01:33]} b5 {[%emt 0:00:28]} 9. a3 {[%emt 0:00:57]} Bb7 {[%emt 0:00:50]} 10. Bg2 {[%emt 0:00:38]} Nbd7 {[%emt 0:01:16]} 11. O-O {[%emt 0:03:51]} g5 {[%emt 0:05:06]} 12. Re1 {[%emt 0:04:32]} Ne5 {[%emt 0:01:40]} 13. a4 {[%emt 0:04:18]} b4 {[%emt 0:04:28]} 14. Na2 {[%emt 0:03:54]} h5 {[%emt 0:15:21]} 15. Bxg5 {[%emt 0:05:05]} hxg4 {[%emt 0:01:00]} 16. hxg4 {[%emt 0:03:02]} Rg8 {[%emt 0:01:38]} 17. Qd2 {[%emt 0:05:36]} Be7 {[%emt 0:01:35]} 18. f3 {[%emt 0:02:31]} Qc7 {[%emt 0:28:55]} 19. Be3 {[%emt 0:17:05]} d5 {[%emt 0:02:09]} 20. exd5 {[%emt 0:06:10]} Nxd5 {[%emt 0:00:09]} 21. b3 {[%emt 0:01:39]} O-O-O {[%emt 0:01:23]} 22. Rad1 {[%emt 0:02:48]} Nxg4 {[%emt 0:00:20]} 23. fxg4 {[%emt 0:00:30]} Rxg4 {[%emt 0:00:06]} 24. Nf3 {[%emt 0:04:22]} Nxe3 {[%emt 0:00:22]} 25. Qxe3 {[%emt 0:00:30]} Rxd1 {[%emt 0:00:14]} 0-1

[Event "EICC 2025"]
[Site "Eforie-Nord"]
[Date "2025.03.15"]
[Round "1.27"]
[White "Quparadze, Giga"]
[Black "Fishchuk, Vladyslav"]
[Result "1-0"]
[Annotator "ChessBase"]
[ECO "B31"]
[WhiteElo "2543"]
[BlackElo "2204"]
[PlyCount "85"]
[EventDate "2025.03.14"]
[EventType "swiss"]
[EventCountry "ROU"]
[SourceTitle "playchess.com"]
[Source "ChessBase"]
[SourceQuality "1"]
[TimeControl "40/5400+30:1800+30"]

1. e4 {[%emt 0:00:01]} c5 {[%emt 0:00:05]} 2. Nf3 {[%emt 0:00:09]} Nc6 {[%emt 0:00:03]} 3. Bb5 {[%emt 0:00:08]} g6 {[%emt 0:00:05]} 4. Bxc6 {[%emt 0:00:06]} bxc6 {[%emt 0:00:03]} 5. O-O {[%emt 0:00:06]} Bg7 {[%emt 0:00:03]} 6. Re1 {[%emt 0:00:06]} Qc7 {[%emt 0:00:03]} 7. h3 {[%emt 0:00:04]} d6 {[%emt 1:33:38]} 8. e5 {[%emt 0:01:48]} dxe5 {[%emt 0:00:00]} 9. d3 {[%emt 0:00:02]} c4 {[%emt 0:00:00]} 10. Qe2 {[%emt 0:00:15]} cxd3 {[%emt 0:00:00]} 11. cxd3 {[%emt 0:00:04]} Nf6 {[%emt 0:00:00]} 12. Nxe5 {[%emt 0:02:26]} Nd5 {[%emt 0:00:00]} 13. d4 {[%emt 1:31:45]} O-O {[%emt 0:00:00]} 14. Nc3 {[%emt 0:00:30]} Bf5 {[%emt 0:03:30]} 15. Qc4 {[%emt 0:00:30]} Nb6 {[%emt 0:00:30]} 16. Qc5 {[%emt 0:00:30]} Nd7 {[%emt 0:00:00]} 17. Nxd7 {[%emt 0:00:00]} Qxd7 {[%emt 0:01:00]} 18. Rxe7 {[%emt 0:01:00]} Qxd4 {[%emt 0:00:00]} 19. Qxd4 {[%emt 0:00:00]} Bxd4 {[%emt 0:00:00]} 20. Be3 {[%emt 0:01:00]} Bxc3 {[%emt 0:00:00]} 21. bxc3 {[%emt 0:00:00]} a6 {[%emt 0:00:00]} 22. Rd1 {[%emt 0:00:00]} Rfe8 {[%emt 0:00:00]} 23. Rxe8+ {[%emt 0:00:00]} Rxe8 {[%emt 0:00:00]} 24. Rd6 {[%emt 0:00:00]} Rc8 {[%emt 0:00:00]} 25. Bh6 {[%emt 0:00:00]} Be6 {[%emt 0:00:00]} 26. a3 {[%emt 0:00:00]} a5 {[%emt 0:00:00]} 27. f3 {[%emt 0:00:00]} Bd5 {[%emt 0:00:00]} 28. Kf2 {[%emt 0:00:00]} Re8 {[%emt 0:00:00]} 29. Kg3 {[%emt 0:00:00]} a4 {[%emt 0:00:00]} 30. Kf4 {[%emt 0:00:00]} Kh8 {[%emt 0:00:00]} 31. h4 {[%emt 0:00:00]} Kg8 {[%emt 0:00:00]} 32. Rd7 {[%emt 0:00:00]} f6 {[%emt 0:00:00]} 33. Rg7+ {[%emt 0:00:00]} Kh8 {[%emt 0:00:00]} 34. Ra7 {[%emt 0:00:00]} Bb3 {[%emt 0:00:00]} 35. Bg7+ {[%emt 0:00:00]} Kg8 {[%emt 0:00:00]} 36. Bxf6 {[%emt 0:00:00]} Re2 {[%emt 0:00:00]} 37. g4 {[%emt 0:00:00]} Ra2 {[%emt 0:00:00]} 38. Kg5 {[%emt 0:00:00]} Rxa3 {[%emt 0:00:00]} 39. Bd4 {[%emt 0:00:00]} Ra1 {[%emt 0:02:43]} 40. Kf6 {[%emt 0:00:00]} h6 {[%emt 0:00:40]} 41. Ra8+ {[%emt 0:00:00]} Kh7 {[%emt 0:30:07]} 42. Ke7 {[%emt 0:00:00]} Bg8 {[%emt 0:01:58]} 43. Kf8 {[%emt 0:00:00]} 1-0

[Event "EICC 2025"]
[Site "Eforie-Nord"]
[Date "2025.03.15"]
[Round "1.27"]
[White "Vagman, Roy"]
[Black "Donchenko, Alexander"]
[Result "1-0"]
[Annotator "TA"]
[ECO "C84"]
[WhiteElo "2300"]
[BlackElo "2627"]
[PlyCount "87"]
[EventDate "2025.03.14"]
[EventType "swiss"]
[EventCountry "ROU"]
[SourceTitle "playchess.com"]
[Source "ChessBase"]
[SourceQuality "1"]
[TimeControl "40/5400+30:1800+30"]

{[%evp 13,87,19,18,8,10,18,10,13,12,9,13,14,6,7,17,13,0,0,0,-6,-8,-6,-11,-20,-21,-19,0,0,0,0,8,-16,0,0,-10,-6,0,-25,-11,-18,16,0,20,15,19,16,37,21,235,231,439,442,438,419,414,443,431,437,434,427,489,237,239,0,482,464,622,638,624,624,762,817,818,817,1597,1497]} 1. e4 {[%emt 0:00:03]} e5 {[%emt 0:00:06]} 2. Nf3 {[%emt 0:00:13]} Nc6 {[%emt 0:00:07]} 3. Bb5 {[%emt 0:00:09]} a6 {[%emt 0:00:14]} 4. Ba4 {[%emt 0:00:08]} Nf6 {[%emt 0:00:11]} 5. O-O {[%emt 0:00:22]} Be7 {[%emt 0:00:29]} 6. d3 {[%emt 0:00:17]} b5 {[%emt 0:00:23]} 7. Bb3 {[%emt 0:00:07]} d6 {[%emt 0:00:10]} 8. Bd2 {[%emt 0:00:20] C84: Closed Ruy Lopez: Unusual White 6th moves.} Bg4 {[%emt 0:01:09]} 9. c3 {[%emt 0:00:14] Prevents Nd4} Na5 {[%emt 0:01:07]} 10. Bc2 {[%emt 0:00:17] The position is equal.} c5 {[%emt 0:00:15]} 11. h3 {[%emt 0:00:56]} Bh5 {[%emt 0:00:37]} 12. Re1 {[%emt 0:00:32]} Qc7 {[%emt 0:03:05]} 13. Bc1 {[%emt 0:10:39]} O-O {[%emt 0:03:59]} 14. Nbd2 {[%emt 0:00:22]} Rad8 {[%emt 0:04:19]} 15. Qe2 {[%emt 0:01:48]} Rfe8 {[%emt 0:06:28]} 16. g4 {[%emt 0:02:57]} Bg6 {[%emt 0:00:47]} 17. a4 {[%emt 0:01:45]} b4 {[%emt 0:10:00]} 18. cxb4 {[%emt 0:04:47]} cxb4 {[%emt 0:00:15]} 19. Nb3 {[%emt 0:00:09]} Rc8 {[%emt 0:09:35]} 20. Bd1 {[%emt 0:00:31]} Nc6 $146 {[%emt 0:05:27]} (20... d5 21. Nh4 dxe4 22. dxe4 Nc4 23. Nxg6 hxg6 24. Nd2 Nxd2 {½-½ Dessaules,P (2394)-Rets,Y (2370) WLS/SRCCC/21/D3 2021 [1]}) 21. Nh4 {[%emt 0:15:59]} Nd7 {[%emt 0:08:20]} 22. Nf5 {[%emt 0:16:54]} Nc5 {[%emt 0:02:23]} 23. Be3 {[%emt 0:05:22][%cal Of5d6]} Ne6 {[%emt 0:01:29]} 24. Qd2 {[%emt 0:06:12]} Qd8 {[%emt 0:04:06]} 25. Bf3 {[%emt 0:03:08]} Bg5 {[%emt 0:01:26]} 26. Rac1 {[%emt 0:02:38]} Bf4 {[%emt 0:03:58]} 27. Kg2 {[%emt 0:05:40]} Bxe3 {[%emt 0:14:38]} 28. fxe3 {[%emt 0:00:25]} Ng5 {[%emt 0:00:05]} 29. Be2 {[%emt 0:08:15]} d5 {[%emt 0:01:17]} 30. h4 {[%emt 0:00:41]} (30. Rf1 {looks sharper.} Ne6 31. d4 Ng5 32. Bxa6 Nxe4 33. Qd1) 30... dxe4 $2 {[%emt 0:04:56]} (30... Ne6 $1 $11) 31. dxe4 $18 {[%emt 0:02:13] [#]} Nxe4 $2 {[%emt 0:03:27]} (31... Nd4) 32. Qxd8 {[%emt 0:00:28]} Rexd8 {[%emt 0:00:02]} 33. Bxa6 {[%emt 0:02:15]} Bxf5 {[%emt 0:00:14]} 34. gxf5 {[%emt 0:04:56]} (34. Bxc8 Bxc8 35. Rxc6 Be6 $18) 34... Rc7 {[%emt 0:00:11]} 35. Bb5 {[%emt 0:01:17]} Rdc8 {[%emt 0:00:50]} 36. Red1 {[%emt 0:01:52] And now Bxc6 would win. Dodges Nd6} h5 {[%emt 0:08:01]} 37. Ba6 {[%emt 0:00:23]} (37. Rc4 $142) 37... Ra8 {[%emt 0:00:38]} 38. Bb5 {[%emt 0:00:04]} (38. Be2 Rxa4 39. Bf3 (39. Bxh5 Nf6 $14)) 38... Rac8 {[%emt 0:00:04]} 39. Rc4 {[%emt 0:02:39] White is clearly winning.} Na7 {[%emt 0:03:49]} 40. Rxe4 {[%emt 0:00:19]} Rc2+ {[%emt 0:00:02]} 41. Kf3 {[%emt 0:10:03]} Nxb5 {[%emt 0:00:00]} 42. axb5 {[%emt 0:00:31][%cal Ba4b5,Bb5b6][%mdl 32]} Rxb2 {[%emt 0:00:00]} 43. Na5 {[%emt 0:04:11]} ({Less strong is} 43. Rxb4 Rc3 $16) 43... Rc5 {[%emt 0:01:28] [#]} 44. b6 $1 {[%emt 0:02:24] Weighted Error Value: White=0.20 (precise) /Black=0.44  Loses game:     	---       	Black=1      Mistake:       	White=2     	Black=1      Inaccurate:     	---       	Black=2      OK:         	White=17    	Black=15     Best:        	White=4     	Black=2} 1-0

[Event "EICC 2025"]
[Site "Eforie-Nord"]
[Date "2025.03.15"]
[Round "1.28"]
[White "Santos Latasa, Jaime"]
[Black "Valiyev, Shahin"]
[Result "1-0"]
[Annotator "TA"]
[ECO "B50"]
[WhiteElo "2627"]
[BlackElo "2299"]
[PlyCount "145"]
[EventDate "2025.03.14"]
[EventType "swiss"]
[EventCountry "ROU"]
[SourceTitle "playchess.com"]
[Source "ChessBase"]
[SourceQuality "1"]
[TimeControl "40/5400+30:1800+30"]

{[%evp 9,145,30,60,25,41,35,35,27,21,-32,-12,-22,-21,-27,4,-13,8,-2,8,-12,-11,-20,-8,-16,35,21,37,43,45,43,42,29,43,41,54,33,46,35,34,35,41,0,1,0,12,0,0,0,2,0,5,0,50,44,48,33,50,43,22,37,25,37,46,43,60,47,109,106,100,105,107,98,111,111,127,121,131,162,188,116,139,137,167,149,163,129,150,154,150,151,150,160,154,158,143,0,126,127,103,77,158,31,50,42,43,49,187,187,180,179,179,170,170,177,164,171,157,135,233,289,305,304,427,19,222,209,279,275,275,267,243,214,207,210,5197,5189,675,471]} 1. e4 {[%emt 0:00:05]} c5 {[%emt 0:00:05]} 2. Nf3 {[%emt 0:00:09]} d6 {[%emt 0:00:06]} 3. Nc3 {[%emt 0:00:15]} a6 {[%emt 0:00:18]} 4. d4 {[%emt 0:00:23]} cxd4 {[%emt 0:00:08]} 5. Qxd4 {[%emt 0:00:58]} Nc6 {[%emt 0:00:14]} 6. Qe3 {[%emt 0:00:03] B50: Sicilian: 2...d6, Miscellaneous.} g6 {[%emt 0:00:17]} 7. Nd5 $146 {[%emt 0:00:27]} ({Predecessor:} 7. Be2 Bh6 8. Qd3 Bg7 9. O-O Bg4 10. Bg5 h6 11. Be3 Rc8 12. Qd2 Bxc3 13. Qxc3 {½-½ Harikrishna,P (2695)-Caruana,F (2803) Tata Steel-A 87th 2025 (10)}) 7... Bg7 {[%emt 0:09:53]} 8. Qa3 {[%emt 0:00:25] White is slightly better.} Nf6 {[%emt 0:19:20]} 9. Be3 {[%emt 0:00:32]} (9. Nxf6+ $11 Bxf6 10. Bh6) 9... O-O $1 $15 {[%emt 0:11:51]} (9... Nxe4 $2 10. Bb6 $18) 10. Bb6 {[%emt 0:00:43]} Qd7 {[%emt 0:00:11]} 11. Bd3 {[%emt 0:00:06]} Nxd5 {[%emt 0:23:41]} 12. exd5 {[%emt 0:00:21]} Ne5 {[%emt 0:00:04]} 13. Nxe5 {[%emt 0:00:12]} Bxe5 {[%emt 0:00:04]} 14. O-O-O {[%emt 0:00:08]} Qg4 {[%emt 0:02:33]} 15. g3 {[%emt 0:00:10]} Qf3 {[%emt 0:05:48]} 16. Qb3 {[%emt 0:05:21]} Bf5 {[%emt 0:05:09]} (16... Bg4 $11) 17. Rhe1 {[%emt 0:03:59]} (17. Bxf5 Qxf5 18. Qd3 Qd7 19. Kb1) 17... Rac8 {[%emt 0:03:36]} 18. Re3 {[%emt 0:04:57]} Qh5 {[%emt 0:00:27]} (18... Qxf2 $2 19. Rxe5 $18) 19. f4 {[%emt 0:00:36]} Bf6 {[%emt 0:00:08]} 20. Rd2 {[%emt 0:00:41]} Bxd3 {[%emt 0:01:35]} 21. Qxd3 {[%emt 0:00:42]} Qf5 {[%emt 0:02:15]} 22. Re4 {[%emt 0:00:46]} (22. Qxf5 {simplifies} gxf5 23. c3 Kg7 24. Kc2) 22... Rfe8 {[%emt 0:03:32]} 23. Qe2 {[%emt 0:04:53]} h5 {[%emt 0:00:45]} 24. Kb1 {[%emt 0:00:38]} Kg7 {[%emt 0:01:45]} 25. a3 {[%emt 0:01:34]} e5 {[%emt 0:02:29]} 26. dxe6 {[%emt 0:01:26]} d5 {[%emt 0:00:17]} 27. Re3 {[%emt 0:01:32]} Rxe6 {[%emt 0:00:11]} 28. Rxe6 {[%emt 0:00:39]} Qxe6 {[%emt 0:00:05]} 29. Bf2 {[%emt 0:01:02]} Rc4 {[%emt 0:04:03]} 30. Qd1 {[%emt 0:01:41]} Re4 {[%emt 0:02:56]} ({Black should try} 30... Qh3 $11) 31. Rxd5 $14 {[%emt 0:08:00]} Re2 {[%emt 0:00:05]} 32. Rd6 $1 {[%emt 0:00:11]} Qe4 {[%emt 0:01:40]} 33. Rd2 $1 {[%emt 0:00:27]} Rxd2 {[%emt 0:00:13]} 34. Qxd2 {[%emt 0:00:05][%mdl 4096] Endgame KQB-KQB. White is a pawn up.} Qh1+ {[%emt 0:00:04]} 35. Be1 {[%emt 0:00:39]} h4 {[%emt 0:00:20]} 36. Ka2 {[%emt 0:03:05]} h3 {[%emt 0:00:10]} 37. g4 $1 {[%emt 0:00:29]} g5 {[%emt 0:01:00]} 38. fxg5 $16 {[%emt 0:02:56]} Be5 {[%emt 0:00:06][%cal Oh1e4]} 39. Bg3 {[%emt 0:00:15]} Bxg3 {[%emt 0:01:04]} 40. Qc3+ {[%emt 0:00:16]} (40. hxg3 Qe4 $11 (40... h2 41. Qd4+ Kg8 42. Qd8+ Kg7 43. Qf6+ Kg8 44. Qd8+ Kg7 45. Qd4+ Kg8 46. Qd8+ $11)) 40... Kg8 {[%emt 0:01:20]} 41. Qxg3 {[%emt 0:30:25] KQ-KQ. White is two pawns up.} Qg2 {[%emt 0:30:28]} 42. Qb8+ {[%emt 0:01:29]} Kh7 {[%emt 0:00:41]} 43. Qf4 {[%emt 0:01:55]} Kg8 {[%emt 0:00:00]} 44. c4 {[%emt 0:00:00]} (44. Kb3 $18) 44... a5 {[%emt 0:00:00]} 45. Kb3 {[%emt 0:00:00]} Qe2 {[%emt 0:00:00] [#]} 46. g6 $1 {[%emt 0:00:00]} fxg6 {[%emt 0:00:00]} 47. g5 {[%emt 0:00:00]} Qd1+ {[%emt 0:00:00]} 48. Kc3 {[%emt 0:00:00]} Qe1+ {[%emt 0:00:00]} 49. Qd2 {[%emt 0:00:00]} Qe5+ {[%emt 0:00:00]} 50. Kb3 {[%emt 0:00:00]} Qc7 {[%emt 0:00:00]} 51. Qe2 {[%emt 0:00:00]} Kg7 {[%emt 0:00:00]} 52. Qd2 {[%emt 0:00:00]} (52. Ka4 $16) 52... Kh7 {[%emt 0:00:00]} (52... Kg8 $11) 53. Qf2 {[%emt 0:00:00]} Kg8 {[%emt 0:00:00]} 54. c5 {[%emt 0:00:00]} Qe5 {[%emt 0:00:00]} 55. Qf3 {[%emt 0:01:17]} (55. Ka4 $16) 55... Qxh2 {[%emt 0:00:00]} 56. Qd5+ {[%emt 0:00:15]} (56. Qxb7 Qg3+ 57. Ka4 Qf4+ 58. Kb5 (58. Kxa5 Qxg5 59. Qc8+ Kf7 $15) 58... h2 59. Qd5+ (59. Kxa5 Qxg5 60. Qb8+ Kg7 $11) 59... Kg7 60. Kxa5 Qc7+ 61. Ka6 Qc8+ 62. Kb6 Qf5 $11 (62... Qb8+ 63. Ka6 $11)) 56... Kf8 {[%emt 0:00:00]} 57. Qd8+ {[%emt 0:00:18]} (57. Qxb7 Qg3+ 58. Kc4 Qf4+ 59. Kb5 h2 60. Kxa5 Qxg5 61. Qb8+ Ke7 62. Qxh2 Qxc5+ 63. Ka4 Qd4+ 64. Kb3 Qd5+ 65. Kc2 Qe4+ 66. Kb3 Qd5+ 67. Kc2 g5 $11) 57... Kg7 {[%emt 0:00:00]} (57... Kf7 $1 $14) 58. Qf6+ $18 {[%emt 0:01:36]} (58. Qxa5 Qe5 59. Qb6 Qd5+ (59... Qxg5 60. Qxb7+ Kg8 61. Qc8+ Kf7 62. Qxh3 $11) 60. Kc2 Qf5+ (60... Qxg5 61. Qxb7+ Kh6 62. Qc8 $17) 61. Kd1 Qd7+ (61... Qxg5 62. Qxb7+ Kh6 63. Qc8 $17) 62. Ke1 Qe7+ 63. Kf2 h2 $11 (63... Qxg5 64. Qxb7+ Kh6 65. Qf3 $11)) 58... Kh7 {[%emt 0:00:00]} 59. Qf7+ {[%emt 0:00:04]} Kh8 {[%emt 0:00:00]} 60. Qf8+ {[%emt 0:00:08]} (60. Qxb7 Qg3+ 61. Ka4 Qf4+ 62. b4 (62. Kxa5 h2 $11) 62... h2 $11) 60... Kh7 {[%emt 0:00:00]} 61. Qh6+ {[%emt 0:00:44]} Kg8 {[%emt 0:00:00] and ...Qg3+ would now be decisive} 62. Qxg6+ {[%emt 0:00:08]} Kf8 {[%emt 0:00:00]} 63. Qf6+ {[%emt 0:00:43]} Ke8 {[%emt 0:00:00] [#]} (63... Kg8 $16) 64. g6 $1 {[%emt 0:01:45] And now g7 would win.} Qg3+ {[%emt 0:00:00]} 65. Ka4 {[%emt 0:02:19]} h2 {[%emt 0:00:00]} (65... Qg4+ $142 66. b4 (66. Kxa5 Qc4 $18) 66... h2 67. Qf7+ (67. Kxa5 h1=Q $11) 67... Kd8) 66. Qf7+ {[%emt 0:00:15]} (66. Kxa5 $2 Qc7+ (66... h1=R $2 67. Qf7+ Kd8 68. Qd5+ Kc7 69. Qxh1 $18) (66... h1=Q $2 67. Qf7+ Kd8 68. g7 $19) 67. Qb6 Qxb6+ (67... h1=Q 68. Qxc7 Qc1 69. Qc8+ Ke7 70. g7 $18) 68. Kxb6 h1=Q $19 (68... h1=R 69. Kxb7 Rh3 70. b4 $18)) (66. Qh8+ $142 Kd7 67. g7) 66... Kd8 {[%emt 0:00:00]} 67. g7 $1 {[%emt 0:02:04]} (67. Qxb7 Qh4+ (67... Qxg6 68. Qb8+ Kd7 69. Qb7+ Kd8 70. Qb8+ Kd7 71. Qxh2 $11) 68. b4 h1=Q $11 (68... h1=R $2 69. c6 $18)) 67... h1=Q {[%emt 0:00:00] ( -> ...Qc6+)} 68. g8=Q+ {[%emt 0:00:03]} (68. g8=B $2 {is a self mate.} Qc6+ 69. Kxa5 Qe1+ 70. b4 Qa6#) 68... Qxg8 {[%emt 0:00:00]} 69. Qxg8+ {[%emt 0:00:10]} Kc7 {[%emt 0:00:00]} 70. Qb3 {[%emt 0:02:49]} ({Much less strong is} 70. Kxa5 Qh6 71. Qg3+ Kc8) 70... Qc6+ {[%emt 0:00:52]} 71. Qb5 $1 {[%emt 0:00:38]} b6 $2 {[%emt 0:00:05]} (71... Qh6 72. Kxa5 (72. Qxa5+ Kc8 $16) 72... Qe3 73. Qb6+ Kb8) 72. cxb6+ {[%emt 0:00:27]} Kb8 {[%emt 0:00:08]} 73. Kxa5 {[%emt 0:00:41] Weighted Error Value: White=0.14 (very precise) /Black=0.17 (very precise)   Loses game:     	---       	Black=1      Mistake:       	White=5     	Black=8      Inaccurate:     	White=1     	Black=1      OK:         	White=18    	Black=25     Best:        	White=11    	Black=4      Strong:       	White=6     	Black=1} 1-0